{"text_format":"1","workbook":"xlsx","n_sheets":1,"sheets":["Exhibit Order"],"not_rendered":{"charts":0,"images":2,"macros":0,"external_links":0,"defined_names":1,"comments":0,"pivot_tables":0},"unopened":[],"bounds":{"document_bytes":16777216,"sheet_cells":100000,"rows_first":2000,"rows_last":500,"rows_between":2000,"halvings":0,"cell_chars":16384,"cell_head_chars":4096},"cells_cut":0,"cells_raw":0,"read":"whole","date_system":"1900"}

{"sheet":"Exhibit Order","index":0,"n_rows":72,"n_cols":9,"rows_kept":72,"cut":false,"hidden":false,"merged":[[59,1,59,6],[47,4,47,6],[48,4,48,6],[0,0,0,6],[4,0,4,6],[5,0,6,1],[42,1,43,6],[21,0,21,6],[17,0,17,6],[18,0,19,1],[14,0,14,6],[13,0,13,6],[22,0,22,6],[50,0,51,6],[52,0,53,6],[32,2,32,6],[5,7,6,8],[15,0,15,6],[25,0,26,1],[32,0,33,1],[18,2,18,6],[12,0,12,1],[9,0,9,1],[8,0,8,1],[7,0,7,1],[16,0,16,6],[10,7,10,8],[12,7,12,8],[14,7,14,8],[16,7,16,8],[18,7,18,8],[15,7,15,8],[46,4,46,6],[13,7,13,8],[29,7,29,8],[17,7,17,8],[19,7,19,8],[65,0,66,8],[71,0,71,8],[70,0,70,8],[69,0,69,8],[68,0,68,8],[67,0,67,8],[61,1,61,6],[57,1,57,6],[40,0,40,6],[54,0,55,8],[24,7,25,8],[30,0,31,6],[25,2,25,6],[42,0,43,0],[30,7,30,8],[51,7,51,8],[43,7,43,8],[28,7,28,8],[31,7,32,8],[49,4,49,6],[44,4,44,6],[45,4,45,6]]}
["2019 EXHIBITOR ORDER FORM"]
[]
[]
[null,null,null,null,null,{"$f":"I8-10","v":-10}]
["Advanced Rate Ends 10 days prior to delivery date"]
["Video Equipment",null,null,"DAILY RATE",null,null,null,"Customer Information"]
[null,null,"Qty","Advanced*","Standard**","Days","Total"]
["DVD / Blu-Ray Player",null,null,176,229,null,{"$f":"IF(C8=\"\",\"\",IF(TODAY()<$F$4,C8*IF(F8>3,3,F8)*D8,C8*E8*IF(F8>3,3,F8)))","v":""},"Delivery Date: (MM/DD/YY)"]
["24\" Flat Panel Video & Computer Monitor on Table stand",null,null,319,415,null,"","Pickup Date: (MM/DD/YY)"]
["32\" Flat Panel Video & Computer Monitor on Table stand",null,null,351,457,null,"","Show/Convention Name:","Industry Summit"]
["46\" Flat Panel Video & Computer Monitor on Table Stand                ",null,null,859,1117,null,"","Booth/Company Name:"]
["46\" Flat Panel Video & Computer Monitor on Floor Stand                ",null,null,{"$f":"D11+150","v":1009},{"$f":"E11+150","v":1267},null,""]
["70\" Flat Panel Video & Computer Monitor on Floor Stand                ",null,null,1594,2073,null,"","Billing Company (if different from above):"]
[{"$f":"IF(C14=\"\",\"\",IF(TODAY()<$F$4,C14*IF(F14>3,3,F14)*D14,C14*E14*IF(F14>3,3,F14)))","v":""}]
["Please let us know if you will need sound for your monitor as some monitors do not have speakers",null,null,null,null,null,null,"Billing Address:"]
["*** PSAV does not supply wall mounts or labor for mounting monitors to your hard sets***"]
[null,null,null,null,null,null,null,"City/State/Zip:"]
[]
["Computers and Accessories ",null,"DAILY RATE",null,null,null,null,"Ordered By:"]
[null,null,"Qty","Advanced*","Standard**","Days","Total"]
["Laptop Computer",null,null,325,400,null,{"$f":"IF(C21=\"\",\"\",IF(TODAY()<$F$4,C21*IF(F21>3,3,F21)*D21,C21*E21*IF(F21>3,3,F21)))","v":""},"Phone:"]
["Please Note Specific Software/Hardware Needs:",null,null,null,null,null,null,"Fax:"]
[null,null,null,null,null,null,null,"Email:                                                          "]
["Basic Black & White LaserJet Printer",null,null,299,368,null,{"$f":"IF(C24=\"\",\"\",IF(TODAY()<$F$4,C24*IF(F24>3,3,F24)*D24,C24*E24*IF(F24>3,3,F24)))","v":""}]
["Mac Adapter",null,null,52,64,null,{"$f":"IF(C25=\"\",\"\",IF(TODAY()<$F$4,C25*IF(F25>3,3,F25)*D25,C25*E25*IF(F25>3,3,F25)))","v":""},"Delivery Information"]
["Internet",null,"DAILY RATE"]
[null,null,"Qty","Advanced*",{"$f":"E20","v":"Standard**"},"Days","Total","Booth #:"]
["Basic Wireless Internet per Device",null,null,170,270,null,{"$f":"IF(C28=\"\",\"\",IF(TODAY()<$F$4,C28*IF(F28>3,3,F28)*D28,C28*E28*IF(F28>3,3,F28)))","v":""},"Onsite Contact:"]
["Basic Wired Internet per Device",null,null,610,815,null,{"$f":"IF(C29=\"\",\"\",IF(TODAY()<$F$4,C29*IF(F29>3,3,F29)*D29,C29*E29*IF(F29>3,3,F29)))","v":""},"Special Instructions: "]
["Dedicated Bandwidth",null,null,"CALL","CALL",null,{"$f":"IF(C30=\"\",\"\",IF(TODAY()<$F$4,C30*D30*F30,C30*E30*F30))","v":""}]
["Basic connections are 1Mbps.  For special HSIA / Bandwidth needs, please call for availability and pricing."]
[null,null,null,null,null,null,null,"Ordering Instructions"]
["Electrical Equipment",null,"SHOW RATE "]
[null,null,"Qty","Advanced*",{"$f":"E27","v":"Standard**"},null,"Total","       This form serves as your quote.  Orders are not confirmed unless a confirmation "]
["10 Amp Single Phase Power",null,null,185,260,1,{"$f":"IF(C35=\"\",\"\",IF(TODAY()<$F$4,C35*D35*F35,C35*E35*F35))","v":""},"       number is received (via email or fax).  "]
["20 Amp Single Phase Power",null,null,240,345,1,{"$f":"IF(C36=\"\",\"\",IF(TODAY()<$F$4,C36*D36*F36,C36*E36*F36))","v":""}]
["Power Strip ",null,null,32,43,1,{"$f":"IF(C37=\"\",\"\",IF(TODAY()<$F$4,C37*D37*F37,C37*E37*F37))","v":""},"        To guarantee availability, orders should be faxed or emailed no "]
["25' extension cord",null,null,32,43,1,{"$f":"IF(C38=\"\",\"\",IF(TODAY()<$F$4,C38*D38*F38,C38*E38*F38))","v":""},"        less than 10 days prior to show start date."]
["PLEASE CALL AT LEAST 10 DAYS PRIOR TO SHOW"]
["IF ADDITIONAL POWER IS NEEDED",null,null,null,null,null,null,"       All orders must include payment information to be processed.  Credit card"]
["Additional labor may apply to under carpet or complex booth sets.",null,null,null,null,null,null,"       payment is preferred method.  If paying by check, please make payable "]
[null,null,null,null,null,null,null,"       to PSAV and submit no less than 10 days prior to setup.   "]
["Rental Totals","PAYMENT IS DUE WHEN ORDER IS PLACED",null,null,null,null,null,"       Please confirm order total with PSAV representative prior to submitting a check."]
[]
["SUBTOTAL",null,null,null,{"$f":"IF(SUM(G35:G38,G28:G30,G21:G25,G8:G15)=0,\"\",SUM(G35:G38,G28:G30,G21:G25,G8:G15))","v":""},null,null,"        TAX EXEMPT STATUS - If you are exempt from payment of sales tax,  please"]
["LABOR FEE (25% of total with an $90.00 minimum)",null,null,null,{"$f":"IF(E45=\"\",\"\",IF(((E45)*0.255)<90,90,(E45)*0.255))","v":""},null,null,"        submit exemption certificate for approval."]
[]
["SUBTOTAL",null,null,null,{"$f":"IF(E46=\"\",\"\",SUM(E45:E47))","v":""},null,null,"         Labor fee is 25% of the order with an $90 minimum"]
["SALES TAX ON SERVICE CHARGE AND EQUIPMENT (12.25% of E45 AND E47)",null,null,null,{"$f":"IF(E48=\"\",\"\",((E45+E47)-(SUM(G28:G30)))*0.11)","v":""}]
["TOTAL DUE",null,null,null,{"$f":"IF(E49=\"\",\"\",E49+E48)","v":""},null,null,"        OPERATOR LABOR - If requested, operator labor is subject to the prevailing "]
["*Advanced pricing if received by PSAV 10 days or more prior to installation.",null,null,null,null,null,null,"        hourly rate and a 5-hour minimum"]
[null,null,null,null,null,null,null,"        Call if you do not receive an email confirmation from PSAV!"]
["**Pricing if received by PSAV less than 10 days prior to installation.",null,null,null,null,null,null,"        CANCELLATIONS - Cancellation of equipment ordered must be received at least "]
[null,null,null,null,null,null,null,"        48 hours prior to delivery date to avoid charges."]
["Method of Payment            "]
[]
[]
["Name on Card:","                                                                                                                         "]
[]
["Type of Card:","             Visa                    MasterCard                     AMEX                    Discover"]
[]
["Card Number:","We will call you for the card number",null,null,null,null,null,"Expiration Date:","                            "]
[]
["Cardholder Signature:","                                                                                                                         "]
[]
["Return for Processing    "]
[]
["PSAV Marriott New Orleans"]
["555 Canal Street"]
["New Orleans, LA 70130"]
["Phone: 504-613-1870      Fax: 855-869-6651    Int'l Fax: 847-879-7600"]
["1796exhibits@psav.com"]